[Event "Championnat du monde jeunes U10F"]
[Date "2024.11.24"]
[White "Afandi, Sadagul"]
[Black "Macchia-Shahar, Yali"]
[WhiteElo "1625"]
[BlackElo "1564"]
[Round "9.26"]
[Result "1-0"]
[TimeControl "5400+30"]

1. e4 {[%clk 1:30:58]} 1... c5 {[%clk 1:30:51]} 2. Nf3 {[%clk 1:31:22]} 2... e6
{[%clk 1:31:07]} 3. d4 {[%clk 1:31:19]} 3... cxd4 {[%clk 1:31:21]} 4. Nxd4
{[%clk 1:31:42]} 4... a6 {[%clk 1:31:33]} 5. Nc3 {[%clk 1:31:55]} 5... Qc7
{[%clk 1:31:42]} 6. g3 {[%clk 1:31:22]} 6... Nf6 {[%clk 1:31:39]} 7. Bg2 {[%clk
1:31:32]} 7... Nc6 {[%clk 1:30:17]} 8. O-O {[%clk 1:29:52]} 8... Be7 {[%clk
1:29:39]} 9. Re1 {[%clk 1:29:33]} 9... d6 {[%clk 1:27:38]} 10. h3 {[%clk
1:24:05]} 10... Bd7 {[%clk 1:23:06]} 11. Nxc6 {[%clk 1:18:17]} 11... Bxc6 {[%clk
1:21:44]} 12. Bf4 {[%clk 1:15:37]} 12... Rd8 {[%clk 1:16:25]} 13. Qe2 {[%clk
1:06:22]} 13... O-O {[%clk 1:11:00]} 14. Rad1 {[%clk 1:01:47]} 14... e5 {[%clk
1:00:42]} 15. Be3 {[%clk 1:00:27]} 15... Qd7 {[%clk 0:53:55]} 16. Rd2 Qe6 {[%clk
0:49:59]} 17. Red1 {[%clk 0:45:33]} 17... Rd7 {[%clk 0:46:33]} 18. g4 {[%clk
0:34:02]} 18... Rfd8 {[%clk 0:43:38]} 19. Nd5 {[%clk 0:32:13]} 19... Bf8 {[%clk
0:39:33]} 20. Nb6 {[%clk 0:25:20]} 20... Re7 {[%clk 0:34:46]} 21. Bc5 {[%clk
0:01:06]} 21... Rc7 {[%clk 0:34:46]} 22. Nd5 {[%clk 0:01:06]} 22... Rcc8 {[%clk
0:34:46]} 23. Bb6 {[%clk 0:01:06]} 23... Rd7 {[%clk 0:34:46]} 24. g5 {[%clk
0:01:06]} 24... Ne8 {[%clk 0:34:46]} 25. h4 {[%clk 0:01:06]} 25... f6 {[%clk
0:34:46]} 26. gxf6 {[%clk 0:01:06]} 26... gxf6 {[%clk 0:34:46]} 27. Kh2 {[%clk
0:01:06]} 27... Bh6 {[%clk 0:34:46]} 28. Be3 {[%clk 0:01:06]} 28... Bxe3 {[%clk
0:34:46]} 29. Bh3 {[%clk 0:01:06]} 29... Qf7 {[%clk 0:34:46]} 30. Qxe3 {[%clk
0:01:06]} 30... Kh8 {[%clk 0:34:46]} 31. Bxd7 {[%clk 0:01:06]} 31... Bxd7 {[%clk
0:34:46]} 32. Rg1 {[%clk 0:01:06]} 32... Ng7 {[%clk 0:34:46]} 33. Qh6 {[%clk
0:01:06]} 33... Rf8 {[%clk 0:34:46]} 34. f3 {[%clk 0:01:06]} 34... Qg8 {[%clk
0:34:46]} 35. Rdg2 {[%clk 0:01:06]} 35... Nf5 1-0

[Variant "Standard"]
[Site "Europe Echecs"]

[Event "Championnat du monde jeunes U10F"]
[Date "2024.11.24"]
[White "Mamarasulova, Yasmina"]
[Black "Milojevic, Dunja"]
[WhiteElo "1444"]
[BlackElo "1610"]
[Round "9.34"]
[Result "1/2-1/2"]
[TimeControl "5400+30"]

1. d4 {[%clk 1:30:57]} 1... Nf6 {[%clk 1:30:31]} 2. c4 {[%clk 1:31:19]} 2... e6
{[%clk 1:30:56]} 3. Nc3 {[%clk 1:31:44]} 3... Bb4 {[%clk 1:31:18]} 4. e3 {[%clk
1:32:05]} 4... c5 {[%clk 1:31:38]} 5. Bd3 {[%clk 1:27:30]} 5... Nc6 {[%clk
1:31:08]} 6. Nf3 {[%clk 1:27:34]} 6... Bxc3+ {[%clk 1:29:28]} 7. bxc3 {[%clk
1:27:36]} 7... d5 {[%clk 1:23:42]} 8. O-O {[%clk 1:15:30]} 8... Qa5 {[%clk
1:07:32]} 9. Qc2 {[%clk 0:50:01]} 9... O-O {[%clk 1:02:10]} 10. Ne5 {[%clk
0:43:48]} 10... h6 {[%clk 0:57:18]} 11. f4 {[%clk 0:35:50]} 11... cxd4 {[%clk
0:52:27]} 12. Nxc6 {[%clk 0:29:23]} 12... bxc6 13. cxd4 {[%clk 0:29:44]} 13...
Ba6 {[%clk 0:52:02]} 14. Bd2 {[%clk 0:27:20]} 14... Qa3 {[%clk 0:51:43]} 15.
Rab1 {[%clk 0:25:29]} 15... Rab8 {[%clk 0:39:35]} 16. Rb3 Rxb3 {[%clk 0:39:28]}
17. axb3 {[%clk 0:21:50]} 17... Rb8 {[%clk 0:39:08]} 18. Rb1 {[%clk 0:25:29]}
18... Rf8 {[%clk 0:39:28]} 19. Rf1 {[%clk 0:21:50]} 19... Rb8 {[%clk 0:39:08]}
20. Rb1 Nd7 {[%clk 0:32:45]} 21. Bc1 {[%clk 0:11:35]} 21... Nf6 {[%clk 0:39:08]}
22. Bd2 Nd7 {[%clk 0:32:45]} 23. Bc1 {[%clk 0:11:35]} 23... Qb4 {[%clk 0:32:22]}
24. Bd2 {[%clk 0:11:51]} 24... Qb6 {[%clk 0:30:58]} 25. Ra1 {[%clk 0:08:38]}
25... c5 {[%clk 0:24:05]} 26. cxd5 {[%clk 0:06:16]} 26... Bxd3 {[%clk 0:24:16]}
27. Qxd3 {[%clk 0:06:40]} 27... exd5 {[%clk 0:24:03]} 28. dxc5 {[%clk 0:05:06]}
28... Qxb3 {[%clk 0:20:07]} 29. Qxb3 {[%clk 0:03:54]} 29... Rxb3 {[%clk
0:20:31]} 30. c6 {[%clk 0:04:15]} 30... Nb6 {[%clk 0:18:34]} 31. Rxa7 {[%clk
0:03:57]} 31... Rb1+ {[%clk 0:18:27]} 32. Kf2 {[%clk 0:04:26]} 32... Rb2 {[%clk
0:18:23]} 33. Ke2 {[%clk 0:03:23]} 33... Rc2 {[%clk 0:16:38]} 34. c7 {[%clk
0:02:56]} 34... Kh7 {[%clk 0:16:30]} 35. Kd3 {[%clk 0:02:27]} 35... Rc6 {[%clk
0:16:05]} 36. Bc3 {[%clk 0:02:38]} 36... Nc8 {[%clk 0:14:45]} 37. Rb7 {[%clk
0:02:01]} 37... Nd6 {[%clk 0:14:43]} 38. Rb3 {[%clk 0:00:37]} 38... Rxc7 {[%clk
0:14:46]} 39. Be5 {[%clk 0:00:55]} 39... Rd7 {[%clk 0:15:00]} 40. Bxd6 {[%clk
0:01:14]} 40... Rxd6 {[%clk 0:15:20]} 41. Kd4 {[%clk 0:01:42]} 41... Kg6 {[%clk
0:14:26]} 42. Rb5 {[%clk 0:02:09]} 42... f6 {[%clk 0:14:14]} 43. Rxd5 {[%clk
0:02:20]} 43... Ra6 {[%clk 0:14:37]} 44. Ke4 {[%clk 0:02:30]} 44... Ra2 {[%clk
0:13:39]} 45. Kf3 {[%clk 0:02:55]} 45... Ra3 {[%clk 0:13:30]} 46. h4 {[%clk
0:03:12]} 46... h5 {[%clk 0:12:56]} 47. g3 {[%clk 0:02:46]} 47... f5 {[%clk
0:11:32]} 48. Rd6+ {[%clk 0:03:15]} 48... Kf7 {[%clk 0:11:54]} 49. Rb6 {[%clk
0:03:36]} 49... Rc3 {[%clk 0:11:53]} 50. Rb2 {[%clk 0:03:58]} 50... Ke6 {[%clk
0:11:52]} 51. Rb6+ {[%clk 0:04:25]} 51... Kf7 {[%clk 0:12:10]} 52. Rb2 {[%clk
0:04:41]} 52... Ra3 {[%clk 0:11:16]} 53. Ke2 {[%clk 0:04:26]} 53... Kf6 {[%clk
0:11:47]} 54. Rb4 {[%clk 0:05:03]} 54... Ra2+ {[%clk 0:12:00]} 55. Kf3 {[%clk
0:04:59]} 55... Ra3 {[%clk 0:12:20]} 56. Rb8 {[%clk 0:05:02]} 56... Kf7 {[%clk
0:12:25]} 57. Rh8 {[%clk 0:04:56]} 57... Kg6 {[%clk 0:12:41]} 58. Re8 {[%clk
0:05:19]} 58... Kf7 {[%clk 0:12:58]} 59. Re5 {[%clk 0:05:42]} 59... Kf6 {[%clk
0:13:21]} 60. Kg2 {[%clk 0:06:04]} 60... Ra2+ {[%clk 0:13:36]} 61. Kh3 {[%clk
0:06:18]} 61... Re2 {[%clk 0:13:54]} 62. Re8 {[%clk 0:04:28]} 62... Kg6 {[%clk
0:13:59]} 63. Re6+ {[%clk 0:02:38]} 1/2-1/2

[Variant "Standard"]
[Site "Europe Echecs"]

[Event "Championnat du monde jeunes U10F"]
[Date "2024.11.26"]
[White "Berikkyzy Alanna"]
[Black "Anistoroaei, Maria"]
[WhiteElo "2043"]
[BlackElo "1715"]
[Round "11.1"]
[Result "1-0"]
[TimeControl "5400+30"]

1. e4 {[%clk 1:30:30]} 1... c5 {[%clk 1:30:50]} 2. Nf3 {[%clk 1:30:40]} 2... e6
{[%clk 1:31:12]} 3. d4 {[%clk 1:30:33]} 3... cxd4 {[%clk 1:31:36]} 4. Nxd4
{[%clk 1:30:22]} 4... a6 {[%clk 1:31:54]} 5. c4 {[%clk 1:30:27]} 5... Nf6 {[%clk
1:31:58]} 6. Nc3 {[%clk 1:30:18]} 6... Qc7 {[%clk 1:32:11]} 7. Be2 {[%clk
1:30:02]} 7... d6 {[%clk 1:32:19]} 8. Be3 {[%clk 1:28:56]} 8... Nbd7 {[%clk
1:32:17]} 9. O-O {[%clk 1:28:28]} 9... b6 {[%clk 1:32:22]} 10. f3 {[%clk
1:27:22]} 10... Bb7 {[%clk 1:32:16]} 11. Qd2 {[%clk 1:27:09]} 11... Be7 {[%clk
1:32:10]} 12. Rfc1 {[%clk 1:26:27]} 12... Rc8 {[%clk 1:30:54]} 13. b4 {[%clk
1:24:19]} 13... O-O {[%clk 1:29:55]} 14. a4 {[%clk 1:23:58]} 14... Qb8 {[%clk
1:25:13]} 15. Kh1 {[%clk 1:22:08]} 15... Ne5 {[%clk 1:22:05]} 16. Qa2 {[%clk
1:15:14]} 16... Qa8 {[%clk 1:12:21]} 17. Qb3 {[%clk 1:06:37]} 17... Rfe8 {[%clk
1:02:39]} 18. a5 {[%clk 0:49:48]} 18... Bd8 19. axb6 {[%clk 0:45:28]} 19... Bxb6
{[%clk 0:55:17]} 20. Na4 {[%clk 0:44:34]} 20... Bd8 {[%clk 0:45:30]} 21. b5
{[%clk 0:44:08]} 21... Nfd7 {[%clk 0:41:19]} 22. bxa6 {[%clk 0:33:25]} 22...
Bxa6 {[%clk 0:40:42]} 23. Nb5 {[%clk 0:28:12]} 23... Bxb5 {[%clk 0:37:30]} 24.
cxb5 {[%clk 0:27:48]} 24... Bf6 {[%clk 0:31:07]} 25. Nc3 {[%clk 0:19:35]} 25...
Qb8 {[%clk 0:27:31]} 26. b6 {[%clk 0:19:03]} 26... Nc5 {[%clk 0:22:25]} 27. Bxc5
{[%clk 0:18:31]} 27... dxc5 {[%clk 0:20:00]} 28. b7 {[%clk 0:18:52]} 28... Rcd8
{[%clk 0:19:17]} 29. Rcb1 {[%clk 0:13:26]} 29... Nc6 {[%clk 0:17:46]} 30. Ra8
{[%clk 0:09:32]} 30... Qc7 {[%clk 0:17:11]} 31. Rxd8 {[%clk 0:08:57]} 31... Rxd8
{[%clk 0:17:05]} 32. Na4 {[%clk 0:07:08]} 32... Nb8 {[%clk 0:16:02]} 33. Qb6
{[%clk 0:05:58]} 33... Qf4 {[%clk 0:13:38]} 34. Nxc5 {[%clk 0:03:41]} 34... g6
{[%clk 0:12:01]} 35. Nd3 {[%clk 0:01:40]} 35... Qd2 {[%clk 0:05:46]} 36. Bf1
{[%clk 0:01:31]} 36... Kg7 {[%clk 0:01:13]} 37. e5 {[%clk 0:00:58]} 37... Be7
{[%clk 0:01:18]} 38. Nf2 {[%clk 0:01:00]} 38... Qc2 {[%clk 0:00:38]} 39. Ne4
{[%clk 0:00:46]} 39... Rd5 {[%clk 0:00:37]} 40. Qb2 {[%clk 0:00:36]} 40... Qc7
{[%clk 0:00:38]} 41. f4 {[%clk 0:00:54]} 41... Rd7 {[%clk 0:00:36]} 42. Qc3
{[%clk 0:00:47]} 42... Qd8 {[%clk 0:00:33]} 43. Qc8 {[%clk 0:00:42]} 43... Ba3
{[%clk 0:00:34]} 44. Qxd8 {[%clk 0:00:59]} 44... Rxd8 {[%clk 0:00:56]} 45. g3
{[%clk 0:00:43]} 45... Be7 {[%clk 0:00:56]} 46. Bg2 {[%clk 0:01:06]} 46... Na6
{[%clk 0:00:38]} 47. Kg1 {[%clk 0:00:53]} 47... Rb8 {[%clk 0:00:36]} 48. Kf1
{[%clk 0:01:01]} 48... Nb4 {[%clk 0:00:38]} 49. Nd6 {[%clk 0:01:05]} 49... Nd3
{[%clk 0:00:34]} 50. Ra1 {[%clk 0:01:01]} 50... Nc5 {[%clk 0:00:39]} 51. Ra8
{[%clk 0:00:46]} 51... Nd7 {[%clk 0:00:58]} 52. Ne8+ {[%clk 0:00:56]} 52... Kh6
{[%clk 0:00:34]} 53. Nc7 {[%clk 0:01:15]} 53... Rd8 {[%clk 0:00:32]} 54. Na6
{[%clk 0:01:17]} 54... Kg7 {[%clk 0:00:36]} 55. Bc6 {[%clk 0:01:09]} 55... Nb8
{[%clk 0:00:33]} 56. Nxb8 {[%clk 0:01:32]} 56... Rd2 {[%clk 0:00:34]} 57. Nd7
{[%clk 0:01:53]} 57... Rb2 {[%clk 0:00:41]} 58. b8=Q {[%clk 0:02:15]} 58... Rxb8
{[%clk 0:01:06]} 59. Rxb8 {[%clk 0:02:41]} 59... g5 {[%clk 0:01:20]} 60. fxg5
{[%clk 0:03:02]} 60... Bxg5 {[%clk 0:01:43]} 61. h4 {[%clk 0:03:29]} 61... Bh6
{[%clk 0:01:44]} 62. Nf6 {[%clk 0:03:38]} 62... Kg6 {[%clk 0:02:07]} 63. Be4+
{[%clk 0:04:02]} 63... Kg7 {[%clk 0:02:24]} 64. Nh5# {[%clk 0:04:28]} 1-0

[Variant "Standard"]
[Site "Europe Echecs"]

[Event "Championnat du monde jeunes U10F"]
[Date "2024.11.26"]
[White "Yang, Aimee"]
[Black "Khusnitdinova, Husnorakhon"]
[WhiteElo "1864"]
[BlackElo "1626"]
[Round "11.2"]
[Result "1-0"]
[TimeControl "5400+30"]

1. d4 {[%clk 1:30:58]} 1... Nf6 {[%clk 1:30:55]} 2. c4 {[%clk 1:31:21]} 2... e6
{[%clk 1:31:19]} 3. Nc3 {[%clk 1:31:35]} 3... Bb4 {[%clk 1:31:33]} 4. e3 {[%clk
1:31:43]} 4... O-O {[%clk 1:31:54]} 5. Bd2 {[%clk 1:31:40]} 5... b6 {[%clk
1:32:09]} 6. Nf3 {[%clk 1:31:45]} 6... Bb7 {[%clk 1:32:34]} 7. Bd3 {[%clk
1:31:41]} 7... c5 {[%clk 1:32:43]} 8. a3 {[%clk 1:30:41]} 8... Bxc3 {[%clk
1:31:52]} 9. Bxc3 {[%clk 1:30:22]} 9... d5 {[%clk 1:31:09]} 10. O-O {[%clk
1:25:13]} 10... Nbd7 {[%clk 1:27:59]} 11. b4 {[%clk 1:24:05]} 11... Rc8 {[%clk
1:23:28]} 12. Rc1 {[%clk 1:24:08]} 12... Re8 {[%clk 1:14:43]} 13. dxc5 {[%clk
1:18:15]} 13... bxc5 {[%clk 1:14:57]} 14. Nd2 {[%clk 1:12:24]} 14... e5 {[%clk
0:59:44]} 15. bxc5 {[%clk 1:11:36]} 15... Nxc5 {[%clk 0:59:13]} 16. Bf5 {[%clk
1:11:52]} 16... Rb8 {[%clk 0:58:50]} 17. Bb4 {[%clk 1:04:04]} 17... dxc4 {[%clk
0:54:08]} 18. Nxc4 {[%clk 1:02:37]} 18... Nce4 {[%clk 0:44:52]} 19. f3 {[%clk
1:01:48]} 19... Ng5 {[%clk 0:44:42]} 20. Nd6 {[%clk 1:00:19]} 20... Re7 {[%clk
0:42:37]} 21. Ne4 {[%clk 0:57:19]} 21... Nd5 {[%clk 0:41:45]} 22. Bxe7 {[%clk
0:56:03]} 22... Qxe7 {[%clk 0:42:12]} 23. Qb3 {[%clk 0:55:09]} 23... g6 {[%clk
0:38:24]} 24. Bh3 {[%clk 0:51:15]} 24... Nxh3+ {[%clk 0:36:46]} 25. gxh3 {[%clk
0:51:40]} 25... Rd8 {[%clk 0:34:46]} 26. Rfd1 {[%clk 0:50:00]} 26... Rd7 {[%clk
0:32:18]} 27. Rc5 {[%clk 0:45:44]} 27... f5 {[%clk 0:28:43]} 28. Rcxd5 {[%clk
0:44:08]} 28... Bxd5 {[%clk 0:27:55]} 29. Rxd5 {[%clk 0:44:24]} 29... Rxd5
{[%clk 0:27:43]} 30. Qxd5+ {[%clk 0:44:45]} 30... Kg7 {[%clk 0:27:57]} 31. Qd6
{[%clk 0:44:24]} 31... Qe8 {[%clk 0:27:36]} 32. Nc5 {[%clk 0:44:15]} 32... Kh6
{[%clk 0:24:28]} 33. Nd7 {[%clk 0:43:31]} 33... Kg5 {[%clk 0:24:09]} 34. Qf6+
{[%clk 0:42:05]} 34... Kh5 {[%clk 0:24:32]} 35. h4 {[%clk 0:41:21]} 35... h6
{[%clk 0:24:52]} 36. Nxe5 {[%clk 0:41:33]} 36... a5 {[%clk 0:24:53]} 37. e4
{[%clk 0:40:55]} 37... Qg8 {[%clk 0:24:12]} 38. Qxg6+ {[%clk 0:40:45]} 38...
Qxg6+ {[%clk 0:24:36]} 39. Nxg6 {[%clk 0:41:11]} 39... Kxg6 {[%clk 0:25:00]} 40.
Kf2 {[%clk 0:41:21]} 40... f4 {[%clk 0:24:59]} 41. Ke2 {[%clk 0:41:43]} 41...
Kh5 {[%clk 0:25:17]} 42. Kd3 {[%clk 0:42:02]} 42... Kxh4 {[%clk 0:25:06]} 43.
Kd4 {[%clk 0:42:11]} 43... h5 {[%clk 0:25:26]} 44. e5 {[%clk 0:42:34]} 44... Kh3
{[%clk 0:25:51]} 45. e6 {[%clk 0:42:50]} 45... h4 {[%clk 0:26:14]} 46. e7 {[%clk
0:43:15]} 46... Kxh2 {[%clk 0:26:35]} 47. e8=Q {[%clk 0:43:35]} 47... h3 {[%clk
0:27:00]} 48. Qg6 {[%clk 0:43:44]} 48... Kh1 {[%clk 0:27:25]} 49. Qg4 {[%clk
0:44:06]} 49... h2 {[%clk 0:27:49]} 50. Qxf4 {[%clk 0:44:24]} 50... Kg2 {[%clk
0:28:14]} 51. Qxh2+ {[%clk 0:44:48]} 51... Kxh2 {[%clk 0:28:39]} 52. f4 {[%clk
0:45:14]} 52... Kg3 {[%clk 0:29:02]} 53. f5 {[%clk 0:45:39]} 53... a4 {[%clk
0:29:28]} 54. f6 {[%clk 0:46:00]} 54... Kg4 {[%clk 0:29:50]} 55. f7 {[%clk
0:46:25]} 55... Kh4 {[%clk 0:30:16]} 56. f8=Q {[%clk 0:46:49]} 56... Kg5 {[%clk
0:30:43]} 57. Ke5 {[%clk 0:47:07]} 57... Kg4 {[%clk 0:31:09]} 58. Qf4+ {[%clk
0:47:31]} 58... Kh5 {[%clk 0:31:34]} 59. Qg3 {[%clk 0:47:56]} 59... Kh6 {[%clk
0:31:58]} 60. Ke4 1-0

[Variant "Standard"]
[Site "Europe Echecs"]

[Event "Championnat du monde jeunes U10F"]
[Date "2024.11.26"]
[White "Filippova, Milana"]
[Black "Tselmuun, Ider"]
[WhiteElo "1687"]
[BlackElo "1846"]
[Round "11.3"]
[Result "1/2-1/2"]
[TimeControl "5400+30"]

1. e4 {[%clk 1:30:58]} 1... c5 {[%clk 1:30:51]} 2. Nf3 {[%clk 1:31:20]} 2... Nc6
{[%clk 1:31:07]} 3. Bb5 {[%clk 1:31:40]} 3... e5 {[%clk 1:31:18]} 4. Bc4 {[%clk
1:26:25]} 4... Be7 {[%clk 1:29:34]} 5. d3 {[%clk 1:22:55]} 5... Nf6 {[%clk
1:29:14]} 6. Nc3 {[%clk 1:21:37]} 6... d6 {[%clk 1:29:00]} 7. h3 {[%clk
1:21:07]} 7... O-O {[%clk 1:27:32]} 8. Bg5 {[%clk 1:01:01]} 8... a6 {[%clk
1:26:18]} 9. Bxf6 {[%clk 0:58:49]} 9... Bxf6 {[%clk 1:26:42]} 10. a4 {[%clk
0:59:10]} 10... Nb4 {[%clk 1:22:37]} 11. O-O {[%clk 0:56:44]} 11... Rb8 {[%clk
1:20:39]} 12. Nh2 {[%clk 0:51:05]} 12... Bg5 {[%clk 1:20:35]} 13. Ng4 {[%clk
0:49:58]} 13... Be6 {[%clk 1:14:27]} 14. Ne3 {[%clk 0:43:35]} 14... Bxe3 {[%clk
1:13:02]} 15. fxe3 {[%clk 0:43:58]} 15... Qg5 {[%clk 1:11:02]} 16. Rf3 {[%clk
0:41:03]} 16... b6 {[%clk 1:11:06]} 17. Qe2 {[%clk 0:39:18]} 17... Qe7 {[%clk
1:04:25]} 18. Raf1 {[%clk 0:35:10]} 18... Qd7 {[%clk 1:03:42]} 19. Qf2 {[%clk
0:26:16]} 19... b5 {[%clk 1:02:46]} 20. axb5 {[%clk 0:25:13]} 20... axb5 {[%clk
1:03:09]} 21. Bxe6 {[%clk 0:25:13]} 21... Qxe6 {[%clk 1:00:55]} 22. Rg3 {[%clk
0:20:02]} 22... Rb7 {[%clk 0:58:48]} 23. Rg4 {[%clk 0:13:25]} 23... Kh8 {[%clk
0:55:45]} 24. d4 {[%clk 0:11:18]} 24... Ra8 {[%clk 0:53:13]} 25. Rd1 {[%clk
0:08:01]} 25... f6 {[%clk 0:48:38]} 26. dxc5 {[%clk 0:06:25]} 26... dxc5 {[%clk
0:49:05]} 27. Qe2 {[%clk 0:05:59]} 27... Qe8 {[%clk 0:49:03]} 28. Nd5 {[%clk
0:03:41]} 28... Nxd5 {[%clk 0:49:27]} 29. exd5 {[%clk 0:03:08]} 29... Ra2 {[%clk
0:49:49]} 30. b3 {[%clk 0:02:13]} 30... Rba7 {[%clk 0:49:20]} 31. e4 {[%clk
0:01:40]} 31... Qd7 {[%clk 0:48:07]} 32. Rg3 {[%clk 0:01:36]} 32... Rb7 {[%clk
0:34:28]} 33. d6 {[%clk 0:01:07]} 33... Rb6 {[%clk 0:33:01]} 34. Rgd3 {[%clk
0:01:05]} 34... Raa6 {[%clk 0:29:17]} 35. Qg4 {[%clk 0:01:00]} 35... Rb7 {[%clk
0:28:49]} 36. Rd5 {[%clk 0:00:50]} 36... Rc6 {[%clk 0:29:06]} 37. Ra1 {[%clk
0:00:47]} 37... g6 {[%clk 0:27:28]} 38. Rad1 {[%clk 0:00:36]} 38... Qxg4 {[%clk
0:27:21]} 39. hxg4 {[%clk 0:00:52]} 39... Rd7 {[%clk 0:27:47]} 40. c3 {[%clk
0:00:40]} 40... Kg7 {[%clk 0:26:53]} 41. b4 {[%clk 0:00:57]} 41... cxb4 {[%clk
0:27:17]} 42. cxb4 {[%clk 0:01:22]} 42... Kh6 {[%clk 0:27:41]} 43. Kf2 {[%clk
0:01:00]} 43... Kg5 {[%clk 0:28:06]} 44. Kg3 {[%clk 0:01:10]} 44... Rc3+ {[%clk
0:27:27]} 45. R1d3 {[%clk 0:01:19]} 45... Rc6 {[%clk 0:27:24]} 46. Rxb5 {[%clk
0:01:16]} 46... Rdxd6 {[%clk 0:26:53]} 47. Rxd6 {[%clk 0:01:19]} 47... Rxd6
{[%clk 0:27:18]} 48. Rd5 {[%clk 0:01:16]} 48... Rc6 {[%clk 0:26:16]} 49. Rc5
{[%clk 0:01:16]} 49... Rd6 {[%clk 0:25:48]} 50. Rd5 {[%clk 0:01:31]} 50... Rb6
{[%clk 0:25:28]} 51. b5 {[%clk 0:01:44]} 51... Rb7 {[%clk 0:25:54]} 52. Rc5
{[%clk 0:01:39]} 52... h5 {[%clk 0:25:21]} 53. gxh5 {[%clk 0:01:56]} 53... gxh5
{[%clk 0:25:44]} 54. Rd5 {[%clk 0:01:49]} 54... h4+ {[%clk 0:25:17]} 55. Kf3
{[%clk 0:01:55]} 55... Kh5 {[%clk 0:24:06]} 56. Rc5 {[%clk 0:01:31]} 56... Kg5
{[%clk 0:22:41]} 57. Rd5 {[%clk 0:01:42]} 1/2-1/2

[Variant "Standard"]
[Site "Europe Echecs"]

[Event "Championnat du monde jeunes U10F"]
[Date "2024.11.26"]
[White "Nguyen Doan, Bao Anh Angelina"]
[Black "Pooja Shree R"]
[WhiteElo "1628"]
[BlackElo "1615"]
[Round "11.4"]
[Result "0-1"]
[TimeControl "5400+30"]

1. e4 {[%clk 1:30:58]} 1... c5 {[%clk 1:30:07]} 2. Nf3 {[%clk 1:31:24]} 2... Nc6
{[%clk 1:30:29]} 3. d4 {[%clk 1:31:50]} 3... cxd4 {[%clk 1:30:44]} 4. Nxd4
{[%clk 1:32:16]} 4... Nf6 {[%clk 1:30:56]} 5. Nc3 {[%clk 1:32:36]} 5... d6
{[%clk 1:30:54]} 6. Bc4 {[%clk 1:32:11]} 6... e6 {[%clk 1:30:30]} 7. Be3 {[%clk
1:31:52]} 7... Bd7 {[%clk 1:25:25]} 8. Qe2 {[%clk 1:30:17]} 8... Be7 {[%clk
1:14:20]} 9. O-O-O {[%clk 1:26:48]} 9... a6 {[%clk 1:13:04]} 10. Bb3 {[%clk
1:23:46]} 10... Qc7 {[%clk 0:57:57]} 11. Kb1 {[%clk 1:20:00]} 11... b5 {[%clk
0:57:55]} 12. Nxc6 {[%clk 1:16:40]} 12... Bxc6 {[%clk 0:52:18]} 13. f3 {[%clk
1:12:12]} 13... Rb8 {[%clk 0:46:30]} 14. g4 {[%clk 1:03:44]} 14... b4 {[%clk
0:42:57]} 15. Na4 {[%clk 1:01:52]} 15... Qa5 {[%clk 0:42:25]} 16. Nb6 {[%clk
0:58:07]} 16... Rxb6 {[%clk 0:42:33]} 17. Bxb6 {[%clk 0:58:25]} 17... Qxb6
{[%clk 0:43:01]} 18. h4 {[%clk 0:52:47]} 18... Nd7 {[%clk 0:39:52]} 19. Bc4
{[%clk 0:46:18]} 19... a5 {[%clk 0:38:09]} 20. g5 {[%clk 0:42:22]} 20... Nc5
{[%clk 0:33:43]} 21. h5 {[%clk 0:32:57]} 21... Kd7 {[%clk 0:27:50]} 22. Rhg1
{[%clk 0:29:31]} 22... Kc7 {[%clk 0:25:29]} 23. g6 {[%clk 0:27:21]} 23... fxg6
{[%clk 0:25:38]} 24. hxg6 {[%clk 0:27:32]} 24... h6 {[%clk 0:25:31]} 25. Rg4
{[%clk 0:25:17]} 25... Bf6 {[%clk 0:22:55]} 26. b3 {[%clk 0:21:10]} 26... Rd8
{[%clk 0:20:43]} 27. Rgg1 {[%clk 0:14:19]} 27... d5 {[%clk 0:19:19]} 28. e5
{[%clk 0:11:18]} 28... Be7 {[%clk 0:19:26]} 29. Bd3 {[%clk 0:11:30]} 29... a4
{[%clk 0:17:51]} 30. Rg4 {[%clk 0:10:00]} 30... Ra8 {[%clk 0:13:58]} 31. Rf4
{[%clk 0:08:10]} 31... Qa5 {[%clk 0:11:23]} 32. Rf7 {[%clk 0:07:18]} 32... Kd7
{[%clk 0:11:18]} 33. Rxg7 {[%clk 0:05:19]} 33... axb3 {[%clk 0:11:28]} 34. cxb3
{[%clk 0:05:43]} 34... Nxd3 {[%clk 0:11:47]} 35. Rxd3 {[%clk 0:03:51]} 35... Bb5
{[%clk 0:11:06]} 36. Rxd5+ {[%clk 0:03:49]} 36... exd5 {[%clk 0:11:24]} 37. e6+
{[%clk 0:03:39]} 37... Kc6 {[%clk 0:09:35]} 38. Qc2+ {[%clk 0:03:08]} 38... Bc5
{[%clk 0:09:44]} 39. Qd2 {[%clk 0:02:38]} 39... Bd3+ {[%clk 0:09:58]} 40. Qxd3
{[%clk 0:02:05]} 40... Qxa2+ {[%clk 0:10:19]} 41. Kc1 {[%clk 0:02:24]} 41...
Qa1+ {[%clk 0:10:31]} 42. Kd2 {[%clk 0:01:48]} 42... Ra2+ {[%clk 0:10:53]} 43.
Qc2 {[%clk 0:02:12]} 43... Qc3+ {[%clk 0:11:14]} 0-1

[Variant "Standard"]
[Site "Europe Echecs"]